Cogmind - Beta 14 @@@ ROGUE MODE // 2025.03.06 @ 20:30:06 Player: DietSnapple Result: Self-destructed Performance ------------- Evolutions (2) 1000 Regions Visited (3) 600 Robots Destroyed (47) 235 Value Destroyed (1210) 1210 Prototype IDs (1) 20 Alien Tech Used (0) 0 Bonus (77) 77 TOTAL SCORE: 3142 Bonus ------- High Alert Combat Kills 77 Cogmind --------- Core Integrity 252/550 Matter 300/300 Energy 100/100 System Corruption 0% Temperature Cool (0) Movement Core (250) Ox4 Location -8/Materials Parts ------- > --- POWER (1) -------- (None) > --- PROPULSION (3) --- (None) > --- UTILITY (5) ------ Small Storage Unit Improved Signal Interpreter Hacking Suite > --- WEAPON (2) ------- Heavy Ion Cannon > --- INVENTORY (8) ---- Light Nuclear Core Heat Sink Weight Redist. System Advanced Visual Processing Unit System Shield Trap Extractor (0/4) Heavy Ion Cannon Heavy Ion Cannon Peak State ------------ > --- POWER ------------ Heavy Ion Engine > --- PROPULSION ------- Gravmag System Gravmag System Gravmag System > --- UTILITY ---------- Small Storage Unit Weight Redist. System Improved Sensor Array Improved Signal Interpreter Hacking Suite > --- WEAPON ----------- Heavy Ion Cannon Heavy Ion Cannon > --- INVENTORY -------- Light Deuterium Engine Light Nuclear Core Heat Sink Advanced Visual Processing Unit Trap Extractor Heavy Ion Cannon Heavy Ion Cannon [Rating: 37] Favorites ----------- Power Light Ion Engine Engine Light Ion Engine Propulsion Gravmag System Treads Light Treads Hover Unit Gravmag System Flight Unit Flight Unit Utility Small Storage Unit Device Weight Redist. System Storage Small Storage Unit Processor Improved Signal Interpreter Hackware Hacking Suite Protection Light Armor Plating Weapon Light Assault Rifle Energy Gun Medium Laser Energy Cannon Heavy Ion Cannon Ballistic Gun Light Assault Rifle Build | -11 -10 -9 -8 ------- Run | Yrd Mat Mat Mat Slots Evolved 4 | . . 2 2 Power . | . . . . Propulsion 1 | . . 1 . Utility 3 | . . 1 2 Weapon . | . . . . Parts Attached 44 | 8 7 13 16 Power 7 | 1 3 2 1 Engine 7 | 1 3 2 1 Core . | . . . . Reactor . | . . . . Propulsion 13 | 2 2 5 4 Treads 2 | 2 . . . Leg . | . . . . Wheel . | . . . . Hover 6 | . 2 . 4 Flight 5 | . . 5 . Utility 13 | 2 . 3 8 Device 5 | 1 . 1 3 Storage 3 | 1 . . 2 Processor 2 | . . 1 1 Hackware 1 | . . . 1 Protection 2 | . . 1 1 Artifact . | . . . . Weapon 11 | 3 2 3 3 Energy Gun 3 | 2 . 1 . Energy Cannon 3 | . . . 3 Ballistic Gun 5 | 1 2 2 . Ballistic Cannon . | . . . . Launcher . | . . . . Special Weapon . | . . . . Impact Weapon . | . . . . Slashing Weapon . | . . . . Piercing Weapon . | . . . . Special Melee Weapon . | . . . . Unidentified Prototypes 1 | . . . 1 Parts Lost 15 | . 2 6 7 Power 5 | . 2 2 1 Propulsion 6 | . . 2 4 Utility 1 | . . . 1 Weapon 3 | . . 2 1 Highest Loss Streak 4 | . 1 2 4 To Critical Strikes . | . . . . Average Slot Usage (%) 90 | . 98 80 90 Engine 10 | . 12 9 8 Treads 6 | . 23 . . Hover 12 | . 4 4 21 Flight 3 | . . 11 . Device 15 | . 14 11 19 Storage 11 | . 14 11 11 Processor 6 | . . 9 9 Hackware 1 | . . . 3 Energy Cannon 6 | . . . 13 Ballistic Gun 12 | . 27 20 . Peak Build Rating 37 | 7 7 11 37 Average Rating 17 | 5 6 8 30 On Entrance 6 | . 7 7 11 Naked Turns . | . . . . Heaviest Build 33 | 12 14 14 33 Greatest Support 40 | 40 40 12 33 Greatest Overweight (x) 4 | 2 1 2 4 Average Overweight (x) . | . . . . Largest Inventory Capacity 8 | 8 8 8 8 Average Capacity 7 | 7 8 8 7 Most Carried 8 | 4 8 8 8 Average Carried 5 | 3 4 6 6 Final Capacity 8 | 8 8 8 8 Final Carried 8 | 4 7 8 8 Class Distribution -------------------- 94% | Mutant 5% | Scavenger-Mutant Dominant Class ---------------- Mutant | -10/Materials Mutant | -9/Materials Mutant | -8/Materials Resources | -11 -10 -9 -8 ----------- Run | Yrd Mat Mat Mat Matter Collected 827 | 288 169 138 232 Remotely . | . . . . Salvage Created 1660 | 135 372 163 990 Parts 103 | 7 37 16 43 Haulers Intercepted . | . . . . Recyclers Shooed . | . . . . Parts Field Recycled . | . . . . Retrieved Matter . | . . . . Parts Self-Destructed . | . . . . Prevented . | . . . . Kills | -11 -10 -9 -8 ------- Run | Yrd Mat Mat Mat Combat Hostiles Destroyed 38 | . 14 8 16 Guns 22 | . 14 8 . Cannons 16 | . . . 16 Classes Destroyed 11 | 3 3 1 4 Worker 3 | 1 1 . 1 Builder 1 | . 1 . . Tunneler 1 | 1 . . . Recycler 1 | 1 . . . Operator 1 | . . . 1 Watcher 2 | . . . 2 Swarmer 16 | . 9 7 . Grunt 12 | . 5 . 7 Brawler 1 | . . . 1 Sentry 8 | . . 1 7 Hunter 1 | . . . 1 Best Kill Streak 4 | 1 4 3 3 Combat Bots Only 3 | . 3 3 3 Max Kills in Single Turn 2 | 1 2 1 1 Gunslinging 1 | . 1 . . Exploded . | . . . . Melee . | . . . . Uniques/NPCs Destroyed . | . . . . Combat | -11 -10 -9 -8 -------- Run | Yrd Mat Mat Mat Hostile Shots Fired 252 | . 88 75 89 Missed 71 | . 20 28 23 Damage Taken 2073 | . 601 454 1018 Core 501 | . 116 87 298 Absorbed by Shields . | . . . . Core Remaining (%) 77 | 100 53 78 . Volleys Fired 158 | 10 44 33 71 Largest 2 | 2 2 2 2 Hottest 130 | 70 40 70 130 Shots Fired 282 | 20 88 66 108 Gun 174 | 20 88 66 . Cannon 108 | . . . 108 Launcher . | . . . . Special . | . . . . Kinetic 156 | 10 88 58 . Thermal 126 | 10 . 8 108 Explosive . | . . . . Electromagnetic . | . . . . Robot Hit Streak 16 | 6 7 14 16 Robot Miss Streak 5 | 2 5 4 3 Penetration Max . | . . . . Secondary Targets 3 | . 3 . . Max Gunslinging Chain 1 | . 1 . . Shots Hit Robots 153 | 12 45 38 58 Core Hits 70 | 5 24 15 26 Critical Kills . | . . . . Critical Parts Destroyed 1 | . 1 . . Critical Strikes 1 | . 1 . . Destroy 1 | . 1 . . Melee Attacks . | . . . . Impact . | . . . . Slashing . | . . . . Piercing . | . . . . Sneak Attacks . | . . . . Combat Hostiles . | . . . . Follow-up Attacks . | . . . . Damage Inflicted 2618 | 136 503 290 1689 Guns 929 | 136 503 290 . Cannons 1677 | . . . 1677 Explosions . | . . . . Melee . | . . . . Ramming 12 | . . . 12 Kinetic 779 | 36 503 240 . Thermal 1827 | 100 . 50 1677 Explosive . | . . . . Electromagnetic . | . . . . Impact . | . . . . Slashing . | . . . . Piercing . | . . . . Highest Corruption . | . . . . Average Corruption . | . . . . Corruption Purged . | . . . . Corruption Blocked . | . . . . Overload Shots . | . . . . Overflow Damage 37 | . . . 37 Projectiles 37 | . . . 37 Explosions . | . . . . Melee . | . . . . Knockbacks 1 | . . . 1 Impact 1 | . . . 1 Kinetic . | . . . . Secondary . | . . . . Self-Inflicted Damage 6 | . . . 6 Shots . | . . . . Rammed 1 | . . . 1 Targets Rammed 1 | . . . 1 Kicked . | . . . . Crushed . | . . . . Highest Temperature 426 | 60 12 64 426 Average Temperature 86 | 26 5 26 107 Received Heat Transfer 753 | . 114 45 594 Effects 3 | . . . 3 Energy Bleed 1 | . . . 1 Interference 2 | . . . 2 Siege Activations . | . . . . Robots Corrupted . | . . . . Combat Hostiles . | . . . . Parts Fried . | . . . . Impact Corruptions . | . . . . Robots Melted . | . . . . Combat Hostiles . | . . . . Parts Melted 3 | . . 1 2 Heat Transferred 2738 | 296 . 148 2294 Parts Sabotaged . | . . . . Parts Stolen . | . . . . Parts Stripped . | . . . . Power Chain Reactions . | . . . . Alert | -11 -10 -9 -8 ------- Run | Yrd Mat Mat Mat Peak Influence 537 | 15 279 275 537 Initial 115 | . 9 75 115 Average 209 | 4 151 143 329 Maximum Alert Level 2 | . 1 1 2 Low Security (%) 55 | 100 65 80 25 Level 1 28 | . 34 19 36 Level 2 16 | . . . 38 Level 3 . | . . . . Level 4 . | . . . . Level 5 . | . . . . High Security . | . . . . Max Security . | . . . . Squads Dispatched 8 | . 2 3 3 Investigation 1 | . 1 . . Extermination . | . . . . Reinforcement 7 | . 1 3 3 Assault . | . . . . Garrison . | . . . . Intercept . | . . . . Searches Triggered . | . . . . Construction Impeded 1 | . . . 1 Haulers Reinforced . | . . . . Active Scanning Responses . | . . . . Cargo Convoy Interrupts . | . . . . Stealth | -11 -10 -9 -8 --------- Run | Yrd Mat Mat Mat Distress Signals 2 | . 1 . 1 Communications Jammed . | . . . . Distress Signals . | . . . . Times Spotted 65 | . 17 20 28 Peak Tracking Total 8 | . 4 8 6 Tactical Retreats 9 | . 1 5 3 Traps | -11 -10 -9 -8 ------- Run | Yrd Mat Mat Mat Traps Triggered 1 | . 1 . . Indirectly . | . . . . Trap Hack Attempts . | . . . . Triggered . | . . . . Disarmed . | . . . . Reprogrammed . | . . . . Reused . | . . . . Traps Extracted . | . . . . Installed . | . . . . Triggered . | . . . . Machines | -11 -10 -9 -8 ---------- Run | Yrd Mat Mat Mat Machines Disabled 1 | . . . 1 Max in Single Turn 1 | . . . 1 Machines Repaired . | . . . . Machines Dismantled . | . . . . Machines Sabotaged . | . . . . Overloaded Fab Kills . | . . . . Hacking | -11 -10 -9 -8 --------- Run | Yrd Mat Mat Mat Machines Accessed 3 | . 1 . 2 Terminals 3 | . 1 . 2 Fabricators . | . . . . Repair Stations . | . . . . Recycling Units . | . . . . Scanalyzers . | . . . . Garrison Access . | . . . . Total Hacks 9 | . 2 . 7 Successful 7 | . 1 . 6 Failed 2 | . 1 . 1 Catastrophic . | . . . . Database Lockouts . | . . . . Manual . | . . . . Terminals 9 | . 2 . 7 Fabricators . | . . . . Repair Stations . | . . . . Recycling Units . | . . . . Scanalyzers . | . . . . Garrison Access . | . . . . Terminal Hacks 7 | . 1 . 6 Record 3 | . . . 3 Alert Level 1 | . . . 1 Patrol Status 1 | . . . 1 Hauler Manifests 1 | . . . 1 Zone Layout 1 | . 1 . . Fabricator Hacks . | . . . . Repair Station Hacks . | . . . . Recycling Unit Hacks . | . . . . Scanalyzer . | . . . . Garrison Access Hacks . | . . . . Unauthorized Hacks . | . . . . Terminals . | . . . . Fabricators . | . . . . Repair Stations . | . . . . Recycling Units . | . . . . Scanalyzers . | . . . . Garrison Access . | . . . . Data Cores Recovered . | . . . . Used . | . . . . Hacking Detections 3 | . 1 . 2 Full Trace Events . | . . . . Feedback Events . | . . . . Feedback Blocked . | . . . . Robot Schematics Acquired . | . . . . Robots Built . | . . . . Authchips . | . . . . Time . | . . . . Total Robot Build Rating . | . . . . Part Schematics Acquired . | . . . . Parts Built . | . . . . Authchips . | . . . . Time . | . . . . Total Part Build Rating . | . . . . Parts Repaired . | . . . . Time . | . . . . Parts Recycled . | . . . . Recycled Matter . | . . . . Retrieved Matter . | . . . . Retrieved Components . | . . . . Parts Scanalyzed . | . . . . Part Schematics Acquired . | . . . . Parts Damaged . | . . . . Bothacking | -11 -10 -9 -8 ------------ Run | Yrd Mat Mat Mat Used RIF Installer . | . . . . Robots Hacked . | . . . . Non-combat . | . . . . Combat . | . . . . Robot Hacks Applied . | . . . . Relay Couplers Released . | . . . . Fabnet Peak Effective % . | . . . . Robots Rewired . | . . . . Allies Hacked . | . . . . Hacks Repelled . | . . . . Allies | -11 -10 -9 -8 -------- Run | Yrd Mat Mat Mat Total Allies . | . . . . Largest Group . | . . . . Highest-Rated Group . | . . . . Highest-Rated Ally . | . . . . Total Orders . | . . . . Ally Attacks . | . . . . Total Damage . | . . . . Kills . | . . . . Allies Corrupted . | . . . . Allies Melted . | . . . . Intel | -11 -10 -9 -8 ------- Run | Yrd Mat Mat Mat Robot Analysis Total . | . . . . Derelict Logs Recovered . | . . . . Drone Launches . | . . . . Drone Recoveries . | . . . . Exploration | -11 -10 -9 -8 ------------- Run | Yrd Mat Mat Mat Turns Passed 2254 | 252 545 490 967 Spaces Moved 1917 | 134 302 391 1090 Core 67 | 10 . 1 56 Treads 338 | 124 214 . . Legs . | . . . . Wheels . | . . . . Hover 1183 | . 88 73 1022 Flight 329 | . . 317 12 Fastest Speed 34 | 50 56 34 34 Average Speed 80 | 152 133 78 56 Slowest Speed 250 | 160 160 200 250 Overloaded Moves . | . . . . Propulsion Burnouts . | . . . . Robots Hopped 3 | . . 3 . Cave-ins Triggered . | . . . . Exploration Rate (%) 33 | 7 29 29 67 Regions Visited 3 Branch Regions . Pre-discovered Areas . | . . . . Known Exits Taken . | . . . . Unknown Exits Taken 3 | 1 1 1 . Scrap Searched . | . . . . Spaces Dug 15 | . . . 15 Terrain Destroyed 43 | . . . 43 Melee . | . . . . Projectile 43 | . . . 43 AOE . | . . . . Terrain Rammed . | . . . . Walls Destroyed . | . . . . Machines Disabled . | . . . . Actions | -11 -10 -9 -8 --------- Run | Yrd Mat Mat Mat Total 2373 | 160 366 512 1335 Wait 197 | 4 . 74 119 Move 1908 | 133 301 384 1090 Hop 3 | . . 3 . Pick Up 30 | 5 8 4 13 Fast Attach 17 | 6 1 4 6 Attach 15 | 1 3 4 7 Detach 9 | . . . 9 Swap 12 | 1 3 5 3 Drop 23 | . 6 1 16 Fire 158 | 10 44 33 71 Melee . | . . . . Ram 1 | . . . 1 Kick . | . . . . Crush . | . . . . Escape Stasis . | . . . . Rewire . | . . . . Trap . | . . . . Miscellaneous . | . . . . Route ------- -11/Scrapyard -10/Materials -9/Materials -8/Materials (discovered 2 exits: *Fac x2) History --------- Turn | Location | Event 12 | -11/Scrapyard | Discovered new exit (range 16) 253 | -11/Scrapyard | Entered Materials 300 | -10/Materials | Build established: Mutant 623 | -10/Materials | Discovered new exit (range 15) 798 | -10/Materials | Entered another Materials area 798 | -9/Materials | Evolved 2 slots: Propulsion x1, Utility x1 1279 | -9/Materials | Discovered new exit (range 10) 1288 | -9/Materials | Entered another Materials area 1288 | -8/Materials | Evolved 2 slots: Utility x2 1883 | -8/Materials | Discovered new exit (range 15) 1895 | -8/Materials | Identified exit to Factory 2087 | -8/Materials | Discovered exit to Factory (range 3) 2212 | -8/Materials | Lost 4 parts (2n1u1w) 2224 | -8/Materials | Core integrity fell below 50% 2255 | -8/Materials | Self-destructed Last Messages --------------- M001. 02164_ Gravmag System destroyed. 02168_ Critical hit (Burn: +37). 02170_ Gravmag System destroyed. 02170_ Critical hit (Burn: +37). 02176_ U-05 Engineer builds a Wall. 02177_ Hvy. Ion Cannon destroyed. 02177_ Critical hit (Burn: +37). 02179_ Overheating: Energy bleed (-53). 02179_ Particle Gun melted. 02179_ G-47 Trooper destroyed. 02180_ K-01 Serf collects debris. 02181_ Imp. Sensor Array destroyed. 02182_ U-05 Engineer builds a Door. 02182_ W-25 Informer sends out distress signal. 02183_ K-01 Serf collects debris. 02193_ R-06 Scavenger collects Imp. Heat Sink. 02194_ K-01 Serf collects debris. 02196_ R-06 Scavenger collects Aluminum Leg. 02220_ Hvy. Ion Engine destroyed. Map ----- +----------------------------------------------------+ | | | | | | | | | | | | | | | | | | | | | | | | | | | ?????????????????????????????????????????????????? | | ?????????????????????????????????????????????????? | | ?????????????????????????????????????????????????? | | ?????????????????????????????????????????????????? | | ?????????????????##########??????????????????????? | | ?????????????????# #??????????????????????? | | ?????????????????# ########???????????????? | | ?????????????????# # #???######??????? | | ?????????????????# !! # ##### [ #??????? | | ?????????????????# !! ggb #??????? | | ?????????????????# !! g# T #??????? | | ?????????????????# # ##### #??????? | | ?????????????????# @# #???## ##?????]] | | ?????????????????# *############# #????? ]] | | ?????????????????##########??# # #???? !! | | ?????????????????????????????# # #??? !! | | ?????????????????????????????# # ### == | | ?????????????????????????????# * # == | | ?????????????????????????????# [# #??? | | ?????????????????????????????# # ######??? | | ?????????????????????????????# # #???????? | | ?????????????????????????????# + #???????? | | ?????????????????????????????# # #???????? | | ???????????????????? ???????#####+#### ##??????? | | ????????????????????? ??????## ### #??????? | | ????????????????????" #### T #??????? | | ????????????????????"" ![ "" #??????? | | ????????????????????" [[ ##### ### #??????? | | ????????????????????????????????# ###########???? | | ????????????????????????????????# ## #???? | | ?????????????????????############ ## """ #???? | | ?????????????????????# ##% ## """ #???? | | ?????????????????????# """ # # """ #???? | | ?????????????????????# """ + # #???? | | ?????????????????????# """ # + """ #???? | | ?????????????????????#"S # # """ #???? | | ?????????????????????#""" ##%### """ #???? | +----------------------------------------------------+ Best States ------------- Heat Dissipation 41 Energy Generation 14 Energy Capacity 430 Matter Stores 300 Matter Capacity 300 Sight Range 16 Robot Scan Range 15 Terrain Scan Range 14 Terrain Scan Density 85 Additional Mass Support 6 Armor Coverage 150 Evasion (%) 63 Recoil Reduction 2 Offensive Hacking 10 Item Schematics ----------------- None Robot Schematics ------------------ None Fabricated ------------ Nothing Alien Tech Used ----------------- None Achievements -------------- None Challenges ------------ None Game ------ Seed ThrusterDisruptionDrive Manual? 0 Play Time 00:32:39 Cumulative 7.4 hours Start 2025.03.06 @ 17:09:18 End 2025.03.06 @ 20:30:06 Sessions 1 Manual Loads 0 Difficulty Rogue Special Mode None Game No. 19 Rogue 12 Adventurer 7 Explorer 0 Win Type - Total 0 Types 0/0/0/0/0/0/0/0/0 Lore% 1 Gallery% 13 Achievement% 11 Wizard Run 0 Options --------- Layout 1 ASCII 0 Keyboard 1 Movement Vi Keybinds 0 Fullscreen 1 Font 24/Smallcaps Map View 76x35 Zoom Use 0% Tactical HUD 1 Map Filters NONE Filters NONE Steam 1 RUN: 34347ef5-700f-4398-8541-214af26b60ac